[Event "DVM U16 2019"]
[Site "Magedburg"]
[Date "2019.12.30"]
[Round "7"]
[White "Bosselmann, Tom Linus"]
[Black "Post, Hugo"]
[Result "0-1"]
[ECO "B80"]
[WhiteElo "2077"]
[BlackElo "2181"]
[Annotator "NA"]
[PlyCount "96"]
[EventDate "2019.12.27"]
[EventType "team-tourn"]
[EventRounds "7"]
[EventCountry "GER"]
[SourceTitle "playchess.com"]
[Source "ChessBase"]
[SourceQuality "1"]
[WhiteTeam "Lübecker SV"]
[BlackTeam "Reideburger SV 90 Halle"]
[WhiteTeamCountry "GER"]
[BlackTeamCountry "GER"]
[TimeControl "40/5400+30:1800+30"]

1. e4 {[%emt 0:00:00]} c5 {[%emt 0:00:00]} 2. Nf3 {[%emt 0:00:00]} d6 {[%emt 0:00:00]} 3. d4 {[%emt 0:00:00]} cxd4 {[%emt 0:00:04]} 4. Nxd4 {[%emt 0:00:00]} Nf6 {[%emt 0:00:09]} 5. Nc3 {[%emt 0:00:00]} e6 {[%emt 0:01:21]} 6. Be3 {[%emt 0:02:59]} a6 {[%emt 0:00:32]} 7. f3 {[%emt 0:02:28]} b5 {[%emt 0:01:06] unterminated} 8. Qd2 {[%emt 0:05:20]} Nbd7 {[%emt 0:01:22] unterminated} 9. g4 {[%emt 0:03:45] unterminated} h6 {[%emt 0:00:30]} 10. O-O-O {[%emt 0:01:50] unterminated} b4 {[%emt 0:00:56] B80: Sicilian Scheveningen: 6 g3 and 6 Be3, including English Attack} 11. Nce2 {[%emt 0:04:17] unterminated} (11. Na4 Ne5 12. Kb1 Bd7 13. b3 Bxa4 14. bxa4 Qc7 15. Be2 Be7 16. h4 Nc4 17. Bxc4 Qxc4 18. Qd3 {1-0 (49) Caruana,F (2802)-Hou,Y (2652) chess.com INT 2017}) 11... Qc7 {[%emt 0:01:50] unterminated} 12. Kb1 {[%emt 0:04:34] unterminated} d5 {[%emt 0:05:54] unterminated} 13. Ng3 {[%emt 0:30:37] unterminated} Bb7 {[%emt 0:07:09] unterminated} 14. Bd3 {[%emt 0:05:28] unterminated} O-O-O $146 {[%emt 0:29:47] unterminated} ({Better is Predecessor:} 14... e5 $15 15. Nde2 (15. Ndf5 g6 16. Nxh6 d4 17. Bf2 Rxh6 {½-½ (60) Souza,L (2317)-Gonzalez Pereira,F (2396) ICCF email 2009}) 15... d4) 15. Qe2 {[%emt 0:05:23]} Nc5 {[%emt 0:02:00]} 16. Nb3 {[%emt 0:00:49] unterminated} dxe4 {[%emt 0:04:22] unterminated} 17. Nxe4 {[%emt 0:09:16] unterminated} Ncxe4 {[%emt 0:04:42]} (17... Nfxe4 $16 18. fxe4 (18. Bxe4 Nxe4 19. Rxd8+ Kxd8 $14) 18... Nxd3 19. cxd3 Kb8) 18. fxe4 {[%emt 0:00:23] unterminated} Nxe4 {[%emt 0:09:23] unterminated} 19. Bxe4 $2 {[%emt 0:04:42]} (19. Bxa6 $18 {and the rest is easy.} Rd5 20. Rxd5 exd5 21. Bxb7+ Qxb7 22. Na5) 19... Bxe4 {[%emt 0:02:29]} 20. Qxa6+ {[%emt 0:00:03]} Bb7 {[%emt 0:00:30]} 21. Rxd8+ {[%emt 0:00:24]} Qxd8 {[%emt 0:00:42]} 22. Qc4+ {[%emt 0:01:17]} Qc7 {[%emt 0:00:04] unterminated} 23. Qxc7+ {[%emt 0:00:19]} Kxc7 {[%emt 0:00:01]} 24. Rf1 {[%emt 0:00:35] unterminated} f6 {[%emt 0:04:20] unterminated} 25. Nc5 {[%emt 0:01:04]} Bd5 $15 {[%emt 0:01:09]} 26. h4 {[%emt 0:08:02]} Bd6 {[%emt 0:02:14]} 27. Nd3 {[%emt 0:01:27]} Kc6 {[%emt 0:03:56]} 28. b3 {[%emt 0:01:21]} e5 {[%emt 0:01:36]} 29. Bd2 {[%emt 0:00:46]} Kb5 {[%emt 0:02:17]} 30. Kb2 {[%emt 0:03:51]} Be6 {[%emt 0:01:11]} 31. c4+ {[%emt 0:00:49]} bxc3+ {[%emt 0:00:33]} 32. Bxc3 {[%emt 0:00:39]} Bxg4 {[%emt 0:02:03]} 33. a4+ {[%emt 0:00:11]} Kb6 {[%emt 0:03:18]} 34. Rg1 {[%emt 0:00:36]} h5 {[%emt 0:01:56]} 35. Nf2 {[%emt 0:00:51]} Bc5 {[%emt 0:01:36]} 36. Be1 {[%emt 0:01:19]} Rd8 {[%emt 0:00:46]} 37. Rg2 {[%emt 0:01:18]} f5 {[%emt 0:02:56]} 38. b4 {[%emt 0:00:49]} Be7 {[%emt 0:01:16]} 39. Nxg4 {[%emt 0:00:30]} hxg4 {[%emt 0:00:06]} 40. Bc3 {[%emt 0:00:36]} Bf6 {[%emt 0:01:52]} 41. Kc2 {[%emt 0:02:47]} e4 {[%emt 0:05:40]} 42. Bxf6 {[%emt 0:07:59]} gxf6 {[%emt 0:00:01]} 43. Kc3 {[%emt 0:01:08]} e3 {[%emt 0:02:33]} 44. a5+ {[%emt 0:10:17]} Kb5 {[%emt 0:01:51]} 45. a6 {[%emt 0:01:20]} Kxa6 {[%emt 0:01:15]} 46. h5 {[%emt 0:00:30]} f4 {[%emt 0:02:06]} 47. h6 {[%emt 0:06:13]} f3 {[%emt 0:03:05]} 48. Ra2+ {[%emt 0:00:29]} Kb7 {[%emt 0:00:35] normal Kd4} 0-1

[Event "DVM U16 2019"]
[Site "Magedburg"]
[Date "2019.12.30"]
[Round "7"]
[White "Bethke, Robert"]
[Black "Kotyk, Michael"]
[Result "1/2-1/2"]
[ECO "A37"]
[WhiteElo "2046"]
[BlackElo "2103"]
[Annotator "ChessBase"]
[PlyCount "53"]
[EventDate "2019.12.27"]
[EventType "team-tourn"]
[EventRounds "7"]
[EventCountry "GER"]
[SourceTitle "playchess.com"]
[Source "ChessBase"]
[SourceQuality "1"]
[WhiteTeam "SF Neuberg"]
[BlackTeam "Hamburger SK"]
[WhiteTeamCountry "GER"]
[BlackTeamCountry "GER"]
[TimeControl "40/5400+30:1800+30"]

1. c4 c5 2. Nc3 Nc6 3. g3 g6 4. Bg2 Bg7 5. Nf3 e5 6. d3 d6 7. a3 a5 8. Bd2 Nge7 9. Rb1 Rb8 10. e4 O-O 11. Nb5 f5 12. exf5 Bxf5 13. Be3 Nd4 14. Nbxd4 cxd4 15. Bg5 b5 16. Nh4 bxc4 17. Nxf5 Rxf5 18. Bxe7 Qxe7 19. Bd5+ Kh8 20. dxc4 e4 21. O-O e3 22. Qe2 exf2+ 23. Rxf2 Qe3 24. Qxe3 dxe3 25. Rxf5 gxf5 26. b4 e2 {normal} 27. Re1 {normal} 1/2-1/2

[Event "DVM U16 2019"]
[Site "Magedburg"]
[Date "2019.12.30"]
[Round "7"]
[White "Biermann, Florian"]
[Black "Haufe, Laurin"]
[Result "1/2-1/2"]
[ECO "B50"]
[WhiteElo "2044"]
[BlackElo "2022"]
[Annotator "NA"]
[PlyCount "81"]
[EventDate "2019.12.27"]
[EventType "team-tourn"]
[EventRounds "7"]
[EventCountry "GER"]
[SourceTitle "playchess.com"]
[Source "ChessBase"]
[SourceQuality "1"]
[WhiteTeam "SG Bochum"]
[BlackTeam "SG Leipzig"]
[WhiteTeamCountry "GER"]
[BlackTeamCountry "GER"]
[TimeControl "40/5400+30:1800+30"]

1. e4 {[%emt 0:00:00]} c5 {[%emt 0:00:00]} 2. Nf3 {[%emt 0:00:00]} d6 {[%emt 0:00:00]} 3. d3 {[%emt 0:00:03]} g6 {[%emt 0:00:01]} ({Predecessor:} 3... Nc6 4. g3 g6 5. Bg2 {1-0 (29) Kratochvil,K (2113)-Snorek,M (2155) Brno 2009}) 4. g3 {[%emt 0:00:18]} Bg7 {[%emt 0:00:06]} 5. Bg2 {[%emt 0:00:34]} Nc6 {[%emt 0:02:57]} 6. O-O {[%emt 0:00:47]} e6 {[%emt 0:01:12] unterminated} 7. c3 {[%emt 0:00:39]} Nge7 {[%emt 0:00:35] unterminated} 8. d4 {[%emt 0:09:25]} cxd4 {[%emt 0:00:19] unterminated} 9. cxd4 {[%emt 0:00:08] unterminated} Qb6 {[%emt 0:03:44] unterminated} 10. d5 $146 {[%emt 0:02:47] A04: Unusual lines after 1 Nf3 and King's Indian Attack} (10. Nc3 O-O 11. Na4 Qa6 12. Re1 b5 13. Nc3 b4 14. Bf1 Qa5 15. Nb5 d5 16. e5 Ba6 17. a4 Bxb5 18. Bxb5 {0-1 (58) Dzierzak,R (2244)-Socko,M (2458) Katowice 2018}) 10... exd5 {[%emt 0:01:43]} ({But not} 10... Bxb2 $2 11. Bxb2 Qxb2 12. dxc6 $16) 11. exd5 {[%emt 0:00:09] unterminated} Ne5 {[%emt 0:00:39]} ({Don't blunder} 11... Bxb2 $2 12. Bxb2 Qxb2 13. Nbd2 $18) 12. Nxe5 {[%emt 0:00:46] unterminated} Bxe5 {[%emt 0:03:10]} 13. Nd2 {[%emt 0:00:11] unterminated} Qc7 {[%emt 0:03:20] unterminated} 14. Qe2 {[%emt 0:06:58] unterminated} O-O {[%emt 0:28:39] unterminated} 15. Nc4 {[%emt 0:03:03] unterminated} Bg7 {[%emt 0:05:42] unterminated} 16. Bf4 {[%emt 0:02:57] unterminated} Nf5 {[%emt 0:00:54] unterminated} 17. Rac1 {[%emt 0:02:01] unterminated} Qd8 {[%emt 0:00:36] unterminated} 18. Qd2 {[%emt 0:05:54] unterminated} b6 {[%emt 0:09:24] unterminated} 19. Rfe1 {[%emt 0:06:46] unterminated} Ba6 {[%emt 0:05:00] unterminated} 20. Qb4 {[%emt 0:13:17]} Bxc4 {[%emt 0:02:32] unterminated} 21. Rxc4 {[%emt 0:01:05] unterminated} a5 {[%emt 0:10:15] unterminated} 22. Qd2 {[%emt 0:02:05] unterminated} Qf6 {[%emt 0:02:08] [#] unterminated} 23. Rc6 $2 {[%emt 0:03:25]} (23. g4 $1 $18 {is the precise move to win.}) 23... Qxb2 {[%emt 0:04:47]} 24. Qxb2 {[%emt 0:00:16]} Bxb2 {[%emt 0:00:06]} 25. Rxb6 {[%emt 0:01:18] unterminated} Bd4 {[%emt 0:01:04] unterminated} 26. Rc6 {[%emt 0:01:36] unterminated} Rab8 $16 {[%emt 0:03:07]} ({Black should try} 26... Rfe8 $14 27. Rxe8+ Rxe8) 27. Be4 {[%emt 0:02:19]} Rb2 {[%emt 0:01:09]} 28. Rc2 {[%emt 0:00:11]} Re8 {[%emt 0:05:25]} 29. Rxb2 {[%emt 0:02:19]} Bxb2 {[%emt 0:00:05]} 30. Rb1 {[%emt 0:07:57]} Rxe4 {[%emt 0:00:24]} 31. Rxb2 {[%emt 0:00:10]} Rd4 {[%emt 0:02:12]} 32. Rd2 {[%emt 0:01:35]} Rc4 {[%emt 0:01:27]} 33. Kf1 {[%emt 0:02:18]} Kg7 {[%emt 0:01:25]} 34. Ke2 {[%emt 0:00:40]} Kf6 {[%emt 0:00:15]} 35. Kd3 {[%emt 0:01:10]} Rc5 {[%emt 0:00:07]} 36. Ke2 {[%emt 0:02:21]} g5 {[%emt 0:02:24]} 37. Be3 {[%emt 0:00:53]} Nxe3 {[%emt 0:00:04]} 38. Kxe3 {[%emt 0:01:21]} Ke5 {[%emt 0:00:14]} 39. f4+ {[%emt 0:01:18]} gxf4+ {[%emt 0:00:05]} 40. gxf4+ {[%emt 0:00:12]} Kf5 {[%emt 0:00:03]} 41. Rg2 {[%emt 0:31:16] normal Ke5 Ke4+} 1/2-1/2

[Event "DVM U16 2019"]
[Site "Magedburg"]
[Date "2019.12.30"]
[Round "7"]
[White "Lohvinov, Petro"]
[Black "Pahl, Theis"]
[Result "1/2-1/2"]
[ECO "B90"]
[WhiteElo "2032"]
[BlackElo "2022"]
[Annotator "NA"]
[PlyCount "86"]
[EventDate "2019.12.27"]
[EventType "team-tourn"]
[EventRounds "7"]
[EventCountry "GER"]
[SourceTitle "playchess.com"]
[Source "ChessBase"]
[SourceQuality "1"]
[WhiteTeam "SK München Südost"]
[BlackTeam "Delmenhorster SK"]
[WhiteTeamCountry "UKR"]
[BlackTeamCountry "GER"]
[TimeControl "40/5400+30:1800+30"]

1. e4 c5 2. Nf3 d6 3. d4 cxd4 4. Nxd4 Nf6 5. Nc3 a6 6. Be3 e5 7. Nb3 Be6 8. f3 h5 9. Qd2 Nbd7 10. Nd5 {B90: Sicilian Najdorf: Unusual White 6th moves, 6 Be3 Ng4 and 6 Be3 e5} (10. O-O-O Be7 11. Bg5 b5 12. h4 Rc8 13. Kb1 O-O 14. a3 Re8 15. Be2 Qb6 16. Rhg1 Bf8 17. Nc1 Rc7 18. N1a2 Rec8 {0-1 (36) Inarkiev,E (2693)-Vidit,S (2707) Danzhou 2019}) 10... Bxd5 11. exd5 g6 {unterminated} 12. O-O-O {unterminated} Nb6 {unterminated} 13. Kb1 {unterminated} Qc7 {unterminated} 14. Qa5 {unterminated} Rc8 {unterminated} 15. c3 $146 {unterminated} ({Predecessor:} 15. Bxa6 Nfxd5 16. Bb5+ Ke7 17. Bxb6 Nxb6 {½-½ (49) Firsching,G (2482)-Fleury,F (2347) Remote email 2014}) 15... Nfd7 {unterminated} 16. f4 {unterminated} Nc4 {unterminated} 17. Qxc7 {unterminated} Rxc7 18. Bxc4 Rxc4 {unterminated} 19. fxe5 {unterminated} Nxe5 20. Bd4 {unterminated} Bg7 21. Nd2 {unterminated} Rc7 {unterminated} 22. Ne4 {unterminated} Ke7 {unterminated} 23. Rhe1 {unterminated} f5 24. Ng5 {unterminated} Kf6 {unterminated} 25. Ne6 {unterminated} Re7 {unterminated} 26. Bb6 {unterminated} Rd7 {unterminated} 27. Re2 {unterminated} Kf7 {unterminated} 28. Nxg7 {unterminated} Kxg7 29. Bd4 {unterminated} Kf6 {unterminated} 30. Rde1 Re8 31. c4 {unterminated} Rc8 {unterminated} 32. c5 {unterminated} Kg5 {unterminated} 33. cxd6 {unterminated} Nc4 {unterminated} 34. Re7 $17 (34. Re6 $16 Rxd6 35. Bf6+ Kh6 36. Rd1) 34... Rxd6 35. Rxb7 Rxd5 36. Bc3 Na3+ 37. Kc1 Nb5 38. Rb6 Nxc3 39. bxc3 Rxc3+ 40. Kb2 Rdc5 41. Ree6 Rc2+ 42. Kb1 Rc1+ 43. Kb2 R1c2+ {normal} 1/2-1/2

[Event "DVM U16 2019"]
[Site "Magedburg"]
[Date "2019.12.30"]
[Round "7"]
[White "Pahl, Erik"]
[Black "Huber, Benedikt"]
[Result "1-0"]
[ECO "B42"]
[WhiteElo "2030"]
[BlackElo "2133"]
[Annotator "ChessBase"]
[PlyCount "87"]
[EventDate "2019.12.27"]
[EventType "team-tourn"]
[EventRounds "7"]
[EventCountry "GER"]
[SourceTitle "playchess.com"]
[Source "ChessBase"]
[SourceQuality "1"]
[WhiteTeam "Delmenhorster SK"]
[BlackTeam "SK München Südost"]
[WhiteTeamCountry "GER"]
[BlackTeamCountry "GER"]
[TimeControl "40/5400+30:1800+30"]

1. e4 {[%emt 0:00:00]} c5 {[%emt 0:00:00]} 2. Nf3 {[%emt 0:00:00]} e6 {[%emt 0:00:00]} 3. d4 {[%emt 0:00:00]} cxd4 {[%emt 0:00:00]} 4. Nxd4 {[%emt 0:00:00]} a6 {[%emt 0:00:00]} 5. Bd3 {[%emt 0:00:02]} Qc7 {[%emt 0:00:27]} 6. O-O {[%emt 0:00:15]} Nc6 {[%emt 0:01:33]} 7. Nxc6 {[%emt 0:01:07]} bxc6 {[%emt 0:00:34]} 8. c4 {[%emt 0:02:21]} Nf6 {[%emt 0:00:44]} 9. Qe2 {[%emt 0:00:31]} d5 {[%emt 0:04:24]} 10. e5 {[%emt 0:07:47]} Nd7 {[%emt 0:00:10]} 11. Bf4 {[%emt 0:00:42]} Be7 {[%emt 0:06:16]} 12. Nc3 {[%emt 0:01:17]} Bb7 {[%emt 0:07:59]} 13. Rad1 {[%emt 0:06:53]} Nb6 {[%emt 0:10:37]} 14. Rfe1 {[%emt 0:07:45]} Bb4 {[%emt 0:04:16]} 15. Bd2 {[%emt 0:06:08]} O-O {[%emt 0:16:44]} 16. Nxd5 {[%emt 0:16:52]} exd5 {[%emt 0:00:40]} 17. Bxb4 {[%emt 0:00:36]} c5 {[%emt 0:00:14]} 18. Ba5 {[%emt 0:01:51]} dxc4 {[%emt 0:05:58]} 19. Bxb6 {[%emt 0:01:22]} cxd3 {[%emt 0:05:47]} 20. Bxc7 {[%emt 0:02:13]} dxe2 {[%emt 0:00:06]} 21. Rxe2 {[%emt 0:00:07]} Rac8 {[%emt 0:00:42]} 22. Bd6 {[%emt 0:01:00]} Rfe8 {[%emt 0:00:29]} 23. Rc2 {[%emt 0:02:41]} c4 {[%emt 0:02:52]} 24. Rd4 {[%emt 0:01:58]} Rc6 {[%emt 0:00:13]} 25. Rcxc4 {[%emt 0:02:49]} Rxc4 {[%emt 0:01:46]} 26. Rxc4 {[%emt 0:00:24]} Rc8 {[%emt 0:00:05]} 27. Rxc8+ {[%emt 0:02:13]} Bxc8 {[%emt 0:00:02]} 28. f4 {[%emt 0:00:25]} f6 {[%emt 0:00:20]} 29. Kf2 {[%emt 0:00:17]} Kf7 {[%emt 0:19:32]} 30. Ke3 {[%emt 0:00:32]} Ke6 {[%emt 0:00:23]} 31. Kd4 {[%emt 0:02:09]} Bd7 {[%emt 0:04:47]} 32. g3 {[%emt 0:01:13]} Bb5 {[%emt 0:03:34]} 33. b3 {[%emt 0:03:34]} Be2 {[%emt 0:00:09]} 34. Kc5 {[%emt 0:00:50]} h5 {[%emt 0:00:19]} 35. b4 {[%emt 0:01:11]} Bb5 {[%emt 0:00:17]} 36. a3 {[%emt 0:00:56]} f5 {[%emt 0:01:30]} 37. Bb8 {[%emt 0:02:30]} g6 {[%emt 0:01:14]} 38. Bd6 {[%emt 0:00:16]} Bd3 {[%emt 0:01:13]} 39. a4 {[%emt 0:00:17]} Be2 {[%emt 0:02:20]} 40. b5 {[%emt 0:00:16]} axb5 {[%emt 0:00:02]} 41. axb5 {[%emt 0:30:06]} Bd3 {[%emt 0:30:21]} 42. Kc6 {[%emt 0:00:57]} Be4+ {[%emt 0:00:24]} 43. Kc7 {[%emt 0:00:09]} g5 {[%emt 0:01:32]} 44. b6 {[%emt 0:00:26] normal} 1-0

[Event "DVM U16 2019"]
[Site "Magedburg"]
[Date "2019.12.30"]
[Round "7"]
[White "Hundrieser, Malte"]
[Black "Bornholdt, Joa Max"]
[Result "0-1"]
[ECO "C25"]
[WhiteElo "2003"]
[BlackElo "1890"]
[Annotator "NA"]
[PlyCount "62"]
[EventDate "2019.12.27"]
[EventType "team-tourn"]
[EventRounds "7"]
[EventCountry "GER"]
[SourceTitle "playchess.com"]
[Source "ChessBase"]
[SourceQuality "1"]
[WhiteTeam "Reideburger SV 90 Halle"]
[BlackTeam "Lübecker SV"]
[WhiteTeamCountry "GER"]
[BlackTeamCountry "GER"]
[TimeControl "40/5400+30:1800+30"]

{[%evp 10,46,7,-14,31,0,78,73,66,43,74,73,63,51,32767,43,32767,32767,33,32767,32767,32767,75,31,75,45,32767,32767,43,32767,62,0,0,-58,32767,32767,32767,32767,-166]} 1. e4 {[%emt 0:00:00]} e5 {[%emt 0:00:00]} 2. Nc3 {[%emt 0:00:00]} Nc6 {[%emt 0:00:30]} 3. g3 {[%emt 0:00:07]} Bc5 {[%emt 0:01:08]} 4. Bg2 {[%emt 0:00:36]} d6 {[%emt 0:01:56]} 5. Nge2 {[%emt 0:00:47] unterminated} Be6 {[%emt 0:03:30]} (5... a6 6. Nd5 Nge7 7. c3 Nxd5 8. exd5 Ne7 9. d4 Ba7 10. O-O O-O 11. dxe5 dxe5 12. c4 Nf5 13. b3 {0-1 (49) Mamedyarov,S (2764)-Carlsen,M (2882) Saint Louis 2019}) 6. O-O {[%emt 0:00:39] C25: Vienna Game: Alternatives to 2...Nf6} Qd7 {[%emt 0:00:36] unterminated} (6... h5 $11) 7. Nd5 {[%emt 0:01:42] unterminated} Nce7 {[%emt 0:03:57] unterminated} (7... f5 $11) 8. d4 {[%emt 0:05:38] unterminated} exd4 {[%emt 0:02:48]} 9. Nxd4 {[%emt 0:00:33] unterminated} Bxd5 {[%emt 0:06:10]} 10. exd5 {[%emt 0:00:29] unterminated} Nf6 {[%emt 0:00:25] unterminated} 11. c4 $146 {[%emt 0:01:07] unterminated} ({Predecessor:} 11. Bg5 O-O-O 12. c4 Rde8 13. Qd2 {½-½ (37) Van der Heijden-Bootsma,H Hengelo 1995}) 11... Qg4 {[%emt 0:07:36] unterminated} 12. Be3 {[%emt 0:07:30] unterminated} Qxd1 {[%emt 0:03:27] unterminated} 13. Raxd1 {[%emt 0:00:48] unterminated} Ng4 {[%emt 0:15:36] unterminated} 14. Bc1 {[%emt 0:05:27] unterminated} Ne5 {[%emt 0:08:34] unterminated} 15. b3 {[%emt 0:01:47] unterminated} O-O {[%emt 0:04:16] unterminated} 16. Nc2 {[%emt 0:04:55] unterminated} a5 {[%emt 0:03:05] unterminated} 17. Be3 {[%emt 0:01:40] unterminated} Bxe3 {[%emt 0:01:14]} 18. Nxe3 {[%emt 0:00:30] unterminated} Rfe8 {[%emt 0:05:49] unterminated} 19. Rfe1 {[%emt 0:03:41] unterminated} Nd7 {[%emt 0:06:30] unterminated} 20. g4 {[%emt 0:08:15] unterminated} (20. Nc2 $14) 20... Ng6 {[%emt 0:03:29] unterminated} 21. Rd4 {[%emt 0:09:42] unterminated} (21. Nf5 $11) 21... Nde5 {[%emt 0:03:09] unterminated} 22. f3 {[%emt 0:02:20] unterminated} Nf4 {[%emt 0:02:33] unterminated} 23. Re4 {[%emt 0:16:15]} Ned3 $19 {[%emt 0:05:24]} 24. Rd1 {[%emt 0:00:57]} a4 {[%emt 0:00:51]} 25. Bf1 {[%emt 0:03:55]} Rxe4 {[%emt 0:00:31]} 26. fxe4 {[%emt 0:00:13]} Nc5 {[%emt 0:01:38]} 27. b4 {[%emt 0:07:31]} Nxe4 {[%emt 0:01:23]} 28. Rd4 {[%emt 0:05:28]} Re8 {[%emt 0:00:41]} 29. Nc2 {[%emt 0:00:36]} Ng6 {[%emt 0:02:00]} 30. Kg2 {[%emt 0:03:05]} Nh4+ {[%emt 0:00:49]} 31. Kh3 {[%emt 0:01:27]} Nf3 {[%emt 0:00:31] normal} 0-1

[Event "DVM U16 2019"]
[Site "Magedburg"]
[Date "2019.12.30"]
[Round "7"]
[White "Prieb, Robert"]
[Black "Schaefer, Konstantin"]
[Result "1/2-1/2"]
[ECO "A57"]
[WhiteElo "1963"]
[BlackElo "1766"]
[Annotator "NA"]
[PlyCount "136"]
[EventDate "2019.12.27"]
[EventType "team-tourn"]
[EventRounds "7"]
[EventCountry "GER"]
[SourceTitle "playchess.com"]
[Source "ChessBase"]
[SourceQuality "1"]
[WhiteTeam "SG Bochum"]
[BlackTeam "SG Leipzig"]
[WhiteTeamCountry "GER"]
[BlackTeamCountry "GER"]
[TimeControl "40/5400+30:1800+30"]

1. d4 {[%emt 0:00:00]} Nf6 {[%emt 0:00:00]} 2. c4 {[%emt 0:00:00]} c5 {[%emt 0:00:00]} 3. d5 {[%emt 0:00:00]} b5 {[%emt 0:00:00]} 4. Nd2 {[%emt 0:00:11] unterminated} e6 {[%emt 0:21:29] unterminated} 5. dxe6 {[%emt 0:11:18]} fxe6 {[%emt 0:00:14] unterminated} 6. e3 {[%emt 0:02:06] unterminated} (6. e4 $11 bxc4 7. e5 (7. Bxc4 Nc6 $11) (7. Nxc4 d5 $11)) 6... bxc4 {[%emt 0:02:58] unterminated} 7. Bxc4 {[%emt 0:00:48]} d5 {[%emt 0:00:14] unterminated} 8. Be2 {[%emt 0:05:27]} Be7 {[%emt 0:01:59] unterminated} 9. Ngf3 {[%emt 0:01:16] unterminated} O-O {[%emt 0:01:18] unterminated} 10. O-O {[%emt 0:01:36] unterminated} Nc6 {[%emt 0:01:15] unterminated} 11. b3 {[%emt 0:03:51] unterminated} Qa5 {[%emt 0:14:29] unterminated} 12. Bb2 {[%emt 0:02:55] unterminated} Bd7 {[%emt 0:21:54] unterminated} 13. Ne5 {[%emt 0:05:32]} Nxe5 {[%emt 0:00:20]} 14. Bxe5 {[%emt 0:00:05] unterminated} Qb6 {[%emt 0:02:44] unterminated} 15. Qc2 {[%emt 0:02:25] unterminated} Bb5 {[%emt 0:02:10] unterminated} 16. Bxb5 {[%emt 0:03:18]} Qxb5 {[%emt 0:00:04] unterminated} 17. Rfd1 {[%emt 0:01:38] unterminated} Ng4 {[%emt 0:01:33] unterminated} 18. Bg3 {[%emt 0:01:15] unterminated} Bf6 {[%emt 0:09:00] unterminated} 19. Rac1 $14 {[%emt 0:03:35]} Rfc8 {[%emt 0:07:24]} 20. Nf3 {[%emt 0:03:37]} Nh6 {[%emt 0:01:52]} 21. Bd6 {[%emt 0:06:11]} Rc6 {[%emt 0:00:32]} 22. Bxc5 {[%emt 0:07:00]} Rac8 {[%emt 0:00:41]} 23. b4 {[%emt 0:01:06]} Qxb4 {[%emt 0:00:19]} 24. Bxb4 {[%emt 0:00:47]} Rxc2 {[%emt 0:00:05]} 25. Rxc2 {[%emt 0:05:40]} Rxc2 {[%emt 0:00:10]} 26. a4 {[%emt 0:02:16]} Ra2 {[%emt 0:00:19]} 27. a5 {[%emt 0:00:47]} Nf7 {[%emt 0:06:18]} 28. Rc1 {[%emt 0:03:21]} Ra1 {[%emt 0:02:30]} 29. Rxa1 {[%emt 0:02:29]} Bxa1 {[%emt 0:00:09]} 30. a6 {[%emt 0:08:50]} Nd8 {[%emt 0:00:27]} 31. Bc5 {[%emt 0:00:58]} Nc6 {[%emt 0:00:07]} 32. Ng5 {[%emt 0:01:58]} e5 {[%emt 0:01:41]} 33. Ne6 {[%emt 0:00:47]} d4 {[%emt 0:01:00]} 34. Nc7 {[%emt 0:09:03]} d3 {[%emt 0:00:34]} 35. Kf1 {[%emt 0:00:11]} Bc3 {[%emt 0:00:07]} 36. Nb5 {[%emt 0:01:05]} Bb4 {[%emt 0:01:25]} 37. Bxb4 {[%emt 0:02:27]} Nxb4 {[%emt 0:00:05]} 38. Nxa7 {[%emt 0:00:16]} Nxa6 {[%emt 0:00:05]} 39. Nc6 {[%emt 0:02:11]} e4 {[%emt 0:00:21]} 40. f3 {[%emt 0:00:52]} Nc5 {[%emt 0:00:33]} 41. Ke1 {[%emt 0:03:49]} Kf7 {[%emt 0:11:30]} 42. fxe4 {[%emt 0:02:15]} Nxe4 {[%emt 0:00:08]} 43. Ne5+ {[%emt 0:00:10]} Ke6 {[%emt 0:00:09]} 44. Nxd3 {[%emt 0:00:07]} g5 {[%emt 0:00:06]} 45. Ke2 {[%emt 0:01:01]} Kf5 {[%emt 0:00:49]} 46. Nf2 {[%emt 0:02:24]} Nc5 {[%emt 0:00:15]} 47. Kf3 {[%emt 0:01:23]} h5 {[%emt 0:01:16]} 48. e4+ {[%emt 0:00:56]} Ke5 {[%emt 0:00:14]} 49. Ke3 {[%emt 0:00:34]} Ne6 {[%emt 0:00:42]} 50. Nd3+ {[%emt 0:00:32]} Kf6 {[%emt 0:01:30]} 51. g3 {[%emt 0:03:23]} Kg6 {[%emt 0:04:08]} 52. Ne5+ {[%emt 0:03:03]} Kf6 {[%emt 0:01:44]} 53. Nf3 {[%emt 0:00:29]} Kg6 {[%emt 0:00:42]} 54. Nd4 {[%emt 0:01:23]} Nc5 {[%emt 0:00:11]} 55. e5 {[%emt 0:01:13]} Kf7 {[%emt 0:07:12]} 56. Nf3 {[%emt 0:02:02]} Ke6 {[%emt 0:01:13]} 57. Kd4 {[%emt 0:03:01]} Nb3+ {[%emt 0:00:09]} 58. Kc3 Na5 {[%emt 0:00:56]} 59. Kd4 {[%emt 0:02:26]} Nb3+ {[%emt 0:00:07]} 60. Ke3 {[%emt 0:00:26]} Nc5 61. Nxg5+ {[%emt 0:00:37]} Kxe5 {[%emt 0:00:40]} 62. Kf3 {[%emt 0:01:10]} Kf5 {[%emt 0:00:11]} 63. Nf7 {[%emt 0:00:46]} Ke6 {[%emt 0:02:23]} 64. Ng5+ {[%emt 0:01:18]} Kf5 {[%emt 0:00:09]} 65. Nh3 {[%emt 0:00:05]} Nd7 {[%emt 0:00:32]} 66. Nf2 {[%emt 0:01:40]} Ne5+ {[%emt 0:00:25]} 67. Kg2 {[%emt 0:00:35]} Nf7 {[%emt 0:00:42]} 68. h3 {[%emt 0:01:58]} Ne5 {[%emt 0:01:30] normal} 1/2-1/2